Workbook

Sheet Mischungstemperatur
B2: Berechnung der Mischungstemperatur
B4: Voraussetzung: | D4: keine Aggregatszustandsänderung
C6: Körper 1 | D6: Köprer 2 | E6: Körper 3 | F6: Körper 4 | G6: Körper 5
B7: Masse Körper | C7: 41.18 | D7: 58.82
B8: Material | C8: Wasser | D8: Wasser
B9: spezifische Wärmekapazität | C9: =SUMIF(Tabelle1[Material],Mischungstemperatur!C$8,Tabelle1[kJ*kg^(−1)*K^(−1)]) -> 4.182 | D9: =SUMIF(Tabelle1[Material],Mischungstemperatur!D$8,Tabelle1[kJ*kg^(−1)*K^(−1)]) -> 4.182 | E9: =SUMIF(Tabelle1[Material],Mischungstemperatur!E$8,Tabelle1[kJ*kg^(−1)*K^(−1)]) -> 0 | F9: =SUMIF(Tabelle1[Material],Mischungstemperatur!F$8,Tabelle1[kJ*kg^(−1)*K^(−1)]) -> 0 | G9: =SUMIF(Tabelle1[Material],Mischungstemperatur!G$8,Tabelle1[kJ*kg^(−1)*K^(−1)]) -> 0
B10: Temperatur | C10: 80.00 | D10: 12.00
B13: Mischungstemperatur | C13: =((C7*C9*C10)+(D7*D9*D10)+(E7*E9*E10)+(F7*F9*F10)+(G7*G9*G10))/((C7*C9)+(D7*D9)+(E7*E9)+(F7*F9)+(G7*G9)) -> 40.00 | D13: Grad
B14: Mischungsmenge | C14: =SUM(C7:G7) -> 100.00 | D14: Masse Körper

Sheet benötigte Warmwassermenge
B2: Berechnung der benötigten Warmwassermenge
B4: Zielmenge | C4: 400 | D4: dm³
B5: Zieltemperatur | C5: 30 | D5: ° C
B7: Kaltwassertemperatur | C7: 12.00 | D7: ° C
B9: Temperatur Boiler | C9: benötigte Wassermenge
B10: 60.00 | C10: =(-$C$4*($C$7-$C$5))/(B10-$C$7) -> 150.00
B11: =B10+1 -> 61.00 | C11: =(-$C$4*($C$7-$C$5))/(B11-$C$7) -> 146.94
B12: =B11+1 -> 62.00 | C12: 144.00
B13: 63.00 | C13: 141.18
B14: 64.00 | C14: 138.46
B15: 65.00 | C15: 135.85
B16: 66.00 | C16: 133.33
B17: 67.00 | C17: 130.91
B18: 68.00 | C18: 128.57
B19: 69.00 | C19: 126.32
B20: 70.00 | C20: 124.14
B21: 71.00 | C21: 122.03
B22: 72.00 | C22: 120.00
B23: 73.00 | C23: 118.03
B24: 74.00 | C24: 116.13
B25: 75.00 | C25: 114.29
B26: 76.00 | C26: 112.50
B27: 77.00 | C27: 110.77
B28: 78.00 | C28: 109.09
B29: 79.00 | C29: 107.46
B30: 80.00 | C30: 105.88
B31: 81.00 | C31: 104.35
B32: 82.00 | C32: 102.86
B33: 83.00 | C33: 101.41
B34: 84.00 | C34: 100.00
B35: 85.00 | C35: 98.63
B36: 86.00 | C36: 97.30
B37: 87.00 | C37: 96.00
B38: 88.00 | C38: 94.74
B39: 89.00 | C39: 93.51
B40: 90.00 | C40: 92.31
B41: 91.00 | C41: 91.14
B42: 92.00 | C42: 90.00
B43: 93.00 | C43: 88.89
B44: 94.00 | C44: 87.80
B45: 95.00 | C45: 86.75

Sheet Abgabemenge Boiler
B2: Abgabemenge eines Boilers in für eine bestimmte Temperatur
B4: Fassungvermögen Boiler | D4: 100 | E4: l = kg
B5: Temperatur | D5: 80 | E5: °C
B7: Kaltwassertemperatur | D7: 12 | E7: °C
B9: Mischtemperatur | C9: =CONCATENATE("Warmwasser ",'Abgabemenge Boiler'!$D$5,"°C") -> Warmwasser 80°C | D9: =CONCATENATE("Kaltwasser ",D7,"°C") -> Kaltwasser 12°C | E9: Gesamtwasser
A10: 0 | B10: 35.00 | C10: 100.00 | D10: =-$D$4*($D$5-B10)/($D$7-B10) -> 195.65 | E10: =C10+D10 -> 295.65
A11: 1 | B11: =($D$5-$B$10)/50*A11+$B$10 -> 35.90 | C11: 100.00 | D11: =-$D$4*($D$5-B11)/($D$7-B11) -> 184.52 | E11: =C11+D11 -> 284.52
A12: =A11+1 -> 2 | B12: =($D$5-$B$10)/50*A12+$B$10 -> 36.80 | C12: 100.00 | D12: 174.19 | E12: 274.19
A13: =A12+1 -> 3 | B13: 37.70 | C13: 100.00 | D13: 164.59 | E13: 264.59
A14: 4 | B14: 38.60 | C14: 100.00 | D14: 155.64 | E14: 255.64
A15: 5 | B15: 39.50 | C15: 100.00 | D15: 147.27 | E15: 247.27
A16: 6 | B16: 40.40 | C16: 100.00 | D16: 139.44 | E16: 239.44
A17: 7 | B17: 41.30 | C17: 100.00 | D17: 132.08 | E17: 232.08
A18: 8 | B18: 42.20 | C18: 100.00 | D18: 125.17 | E18: 225.17
A19: 9 | B19: 43.10 | C19: 100.00 | D19: 118.65 | E19: 218.65
A20: 10 | B20: 44.00 | C20: 100.00 | D20: 112.50 | E20: 212.50
A21: 11 | B21: 44.90 | C21: 100.00 | D21: 106.69 | E21: 206.69
A22: 12 | B22: 45.80 | C22: 100.00 | D22: 101.18 | E22: 201.18
A23: 13 | B23: 46.70 | C23: 100.00 | D23: 95.97 | E23: 195.97
A24: 14 | B24: 47.60 | C24: 100.00 | D24: 91.01 | E24: 191.01
A25: 15 | B25: 48.50 | C25: 100.00 | D25: 86.30 | E25: 186.30
A26: 16 | B26: 49.40 | C26: 100.00 | D26: 81.82 | E26: 181.82
A27: 17 | B27: 50.30 | C27: 100.00 | D27: 77.55 | E27: 177.55
A28: 18 | B28: 51.20 | C28: 100.00 | D28: 73.47 | E28: 173.47
A29: 19 | B29: 52.10 | C29: 100.00 | D29: 69.58 | E29: 169.58
A30: 20 | B30: 53.00 | C30: 100.00 | D30: 65.85 | E30: 165.85
A31: 21 | B31: 53.90 | C31: 100.00 | D31: 62.29 | E31: 162.29
A32: 22 | B32: 54.80 | C32: 100.00 | D32: 58.88 | E32: 158.88
A33: 23 | B33: 55.70 | C33: 100.00 | D33: 55.61 | E33: 155.61
A34: 24 | B34: 56.60 | C34: 100.00 | D34: 52.47 | E34: 152.47
A35: 25 | B35: 57.50 | C35: 100.00 | D35: 49.45 | E35: 149.45
A36: 26 | B36: 58.40 | C36: 100.00 | D36: 46.55 | E36: 146.55
A37: 27 | B37: 59.30 | C37: 100.00 | D37: 43.76 | E37: 143.76
A38: 28 | B38: 60.20 | C38: 100.00 | D38: 41.08 | E38: 141.08
A39: 29 | B39: 61.10 | C39: 100.00 | D39: 38.49 | E39: 138.49
A40: 30 | B40: 62.00 | C40: 100.00 | D40: 36.00 | E40: 136.00
A41: 31 | B41: 62.90 | C41: 100.00 | D41: 33.60 | E41: 133.60
A42: 32 | B42: 63.80 | C42: 100.00 | D42: 31.27 | E42: 131.27
A43: 33 | B43: 64.70 | C43: 100.00 | D43: 29.03 | E43: 129.03
A44: 34 | B44: 65.60 | C44: 100.00 | D44: 26.87 | E44: 126.87
A45: 35 | B45: 66.50 | C45: 100.00 | D45: 24.77 | E45: 124.77
A46: 36 | B46: 67.40 | C46: 100.00 | D46: 22.74 | E46: 122.74
A47: 37 | B47: 68.30 | C47: 100.00 | D47: 20.78 | E47: 120.78
A48: 38 | B48: 69.20 | C48: 100.00 | D48: 18.88 | E48: 118.88
A49: 39 | B49: 70.10 | C49: 100.00 | D49: 17.04 | E49: 117.04
A50: 40 | B50: 71.00 | C50: 100.00 | D50: 15.25 | E50: 115.25
A51: 41 | B51: 71.90 | C51: 100.00 | D51: 13.52 | E51: 113.52
A52: 42 | B52: 72.80 | C52: 100.00 | D52: 11.84 | E52: 111.84
A53: 43 | B53: 73.70 | C53: 100.00 | D53: 10.21 | E53: 110.21
A54: 44 | B54: 74.60 | C54: 100.00 | D54: 8.63 | E54: 108.63
A55: 45 | B55: 75.50 | C55: 100.00 | D55: 7.09 | E55: 107.09
A56: 46 | B56: 76.40 | C56: 100.00 | D56: 5.59 | E56: 105.59
A57: 47 | B57: 77.30 | C57: 100.00 | D57: 4.13 | E57: 104.13
A58: 48 | B58: 78.20 | C58: 100.00 | D58: 2.72 | E58: 102.72
A59: 49 | B59: 79.10 | C59: 100.00 | D59: 1.34 | E59: 101.34
A60: 50 | B60: 80.00 | C60: 100.00 | D60: 0 | E60: 100.00

Sheet Hilfsblatt
B2: Material | C2: J/(kg*K) | D2: kJ*kg^(−1)*K^(−1)
B3: Aluminium | C3: 896.00 | D3: =C3/1000 -> 0.90
B4: Argon | C4: 523.00 | D4: 0.52
B5: Blei | C5: 129.00 | D5: 0.13
B6: Butan | C6: 1,658.00 | D6: 1.66
B7: Eis (bei 0° C) | C7: 1,200.00 | D7: 1.20
B8: Eisen/Stahl | C8: 452.00 | D8: 0.45
B9: Ethanol | C9: 2,430.00 | D9: 2.43
B10: Glas | C10: 800.00 | D10: 0.80
B11: Helium | C11: 5,193.00 | D11: 5.19
B12: Holz natürlich | C12: 2,500.00 | D12: 2.50
B13: Holz trocken | C13: 1,500.00 | D13: 1.50
B14: Kupfer | C14: 382.00 | D14: 0.38
B15: Luft | C15: 1,005.00 | D15: 1.01
B16: Messing | C16: 384.00 | D16: 0.38
B17: Petoleum | C17: 2,140.00 | D17: 2.14
B18: Quecksilber | C18: 139.00 | D18: 0.14
B19: Sand/Gestein/Ziegel/Beton | C19: 850.00 | D19: 0.85
B20: Silber | C20: 235.00 | D20: 0.24
B21: Wasser | C21: 4,182.00 | D21: 4.18
B22: Wasserstoff | C22: 14,320.00 | D22: 14.32

Sheet Wassererwärmung
B2: Wassererwärmung
B4: Ausgangstemperatur | C4: 12.00 | D4: °C
B5: Endtemperatur | C5: 37.00 | D5: °C
B6: ∆T | C6: =C5-C4 -> 25.00 | D6: °C
B8: Stoff | C8: Wasser
B9: spezifische Wärmekapazität | C9: =SUMIF(Tabelle1[Material],Wassererwärmung!C8,Tabelle1[J/(kg*K)]) -> 4,182.00 | D9: J/(kg*K)
B10: Masse | C10: 100.00 | D10: kg
B12: Wärmemenge
B13: ∆Q (erforderliche Wärmemenge) | C13: =C9*C10*C6 -> 10,455,000.00 | D13: Joule
B14: W | C14: =C13/(3.6*(10^6)) -> 2.90 | D14: kWh
B16: Dauer für das Aufwärmen
B17: Leistungsaufnahme | C17: 2 | D17: kW
B18: ∆t | C18: =C14/C17 -> 1.45 | D18: h | K18: 4.68
C19: =C18*60 -> 87.13 | D19: min | K19: 28
K20: =K18/K19 -> 0.1671428571
B21: Kosten für das Aufwärmen
B22: Strompreis | C22: 20.00 | D22: Cent / kWh
B23: Kosten gesamt | C23: =C22*C14 -> 58.08 | D23: Cent

Sheet EN 60379
B2: Bereitstellungsenergieverbrauch von Boilern
B4: Volumen | C4: 100.00 | D4: Liter
B5: Thermal losses | C5: 1.54 | D5: kWh/24h gem. EN 60379:2005
C7: =C5/(C4/10) -> 0.15400 | D7: Energieverbrauch in 24h pro 10 Liter Inhalt [kWh]
B9: Preis | C9: 20 | D9: Cent / kWh
C10: Kosten auf Volumen | F10: Kosten auf 10l Inhalt
C11: =C9*C5 -> 30.80 | D11: Cent / Tag | F11: =C7*C9 -> 3.08 | G11: Cent / Tag
C12: =C11*30/100 -> 9.24 | D12: Euro / Monat | F12: =F11*30/100 -> 0.92 | G12: Euro / Monat
C13: =C11*365/100 -> 112.42 | D13: Euro / Jahr | F13: =F11*365/100 -> 11.24 | G13: Euro / Jahr
C14: =C13*10 -> 1,124.20 | D14: Euro / 10 Jahre | F14: =F13*10 -> 112.42 | G14: Euro / 10 Jahre
B16: Teilfrage 1: Um wieviel ist der Boiler binnen der 24h kühler geworden
B18: Anfangstemperatur | C18: 51.74 | D18: °C | F18: (unbekannt)
B19: Endtemperatur | C19: 65.00 | D19: °C gem. EN 60379:2005
B20: ∆T | C20: =C19-C18 -> 13.26 | D20: °C (Temperaturabnahme = Lösung)
B22: Stoff | C22: Wasser
B23: spezifische Wärmekapazität | C23: =SUMIF(Tabelle1[Material],C22,Tabelle1[J/(kg*K)]) -> 4,182.00 | D23: J/(kg*K)
B24: Masse | C24: =C4 -> 100.00 | D24: kg
B26: Wärmemenge
B27: ∆Q (erforderliche Wärmemenge) | C27: =C23*C24*C20 -> 5,544,000.00 | D27: Joule
B28: W | C28: =C27/(3.6*(10^6)) -> 1.54 | D28: kWh
B31: Teilfrage 2: Berechnung der Proportionalitätskonstante
B32: unter Verwendung des Newtonschen Abkühlungsgesetzes
B36: Umgebungstemperatur | C36: 20.00
B37: Temperatur zu t=0 (T0) | C37: =C19 -> 65.00
B38: Dauer in Minuten (X) | C38: =24*60 -> 1,440.00
B39: Proportionalitätskonstante (k) | C39: 0.000242353057376
B41: Temperatur zu t=X (T(t)) | C41: =C36+(C37-C36)*EXP(-C39*C38) -> 51.74
L42: Abgeführte Wärmemenge durch die Behälterwand
B44: Teilfrage 3: Berechnung der Abkühlung bei höherer Ausgangstemperatur
B45: unter Verwendung des Newtonschen Abkühlungsgesetzes
B49: Umgebungstemperatur | C49: =C36 -> 20.00
B50: Temperatur zu t=0 (T0) | C50: 80.00
B51: Dauer in Minuten (X) | C51: =24*60 -> 1,440.00
B52: Proportionalitätskonstante (k) | C52: =C39 -> 0.000242353057376
B54: Temperatur zu t=X (T(t)) | C54: =C49+(C50-C49)*EXP(-C52*C51) -> 62.32
B56: Teilfrage 4: Berechnung des Energieaufwandes bei höherer Ausgangstemperatur | L56: http://www.schweizer-fn.de/waerme/waermeabstrahlung/waermeabstrahlung.php
B58: Anfangstemperatur | C58: =C54 -> 62.32 | D58: °C
B59: Endtemperatur | C59: =C50 -> 80.00 | D59: °C gem. EN 60379:2005
B60: ∆T | C60: =C59-C58 -> 17.68 | D60: °C (Temperaturabnahme)
B62: Stoff | C62: Wasser
B63: spezifische Wärmekapazität | C63: =SUMIF(Tabelle1[Material],C62,Tabelle1[J/(kg*K)]) -> 4,182.00 | D63: J/(kg*K)
B64: Masse | C64: =C4 -> 100.00 | D64: kg
B66: Wärmemenge
B67: ∆Q (erforderliche Wärmemenge) | C67: =C63*C64*C60 -> 7,392,070.30 | D67: Joule
B68: W | C68: =C67/(3.6*(10^6)) -> 2.053352862 | D68: kWh
B71: Teilfrage 5: Berechnung des Wärmeübertragungskoeffizienten
B73: Oberfläche Boiler
B74: Breite | C74: 700.00 | D74: mm | E74: =C74/1000 -> 0.70 | F74: m
B75: Höhe | C75: 1,585.00 | D75: mm | E75: =C75/1000 -> 1.59 | F75: m
B76: Tiefe | C76: 815.00 | D76: mm | E76: =C76/1000 -> 0.82 | F76: m
B77: Oberfläche (A) | C77: =2*C74*C75+2*C74*C76+2*C75*C76 -> 5,943,550.00 | D77: mm² | E77: =2*E74*E75+2*E74*E76+2*E75*E76 -> 5.94 | F77: m²
B79: Fassungsvolumen | C79: =C4 -> 100.00 | D79: kg
B80: Eigengewicht | C80: 50.00 | D80: kg
B81: Gesamtmasse (m) | C81: =C80+C79 -> 150.00
B83: spezfifische Wärmekapazität (c) | C83: =C63 -> 4,182.00 | D83: J/(kg*K)
B85: Wärmeübertragungskoeffizient (α) | C85: 0.02557866475
B87: Proportionalitätskonstante (k) | C87: =(C85*E77)/(C83/1000*C81) -> 0.0002423530574

Sheet Durchflussmenge
B2: Warmwasserleistung; Durchflussmenge
B4: Durchflussmenge | C4: 10.00 | D4: L/min = kg/min
C5: =C4/60 -> 0.17 | D5: L/sec = kg/min
B7: Masse (Badewannengröße) | C7: 100.00 | D7: L
B9: Dauer | C9: =C7/C4 -> 10.00 | D9: min
B12: Warmwasserleistung
B14: Ausgangstemperatur | C14: 12.00 | D14: °C
B15: Endtemperatur | C15: 40.00 | D15: °C
B16: ∆T | C16: =C15-C14 -> 28.00 | D16: °C
B18: Stoff | C18: Wasser
B19: spezifische Wärmekapazität | C19: =SUMIF(Tabelle1[Material],C18,Tabelle1[J/(kg*K)]) -> 4,182.00 | D19: J/(kg*K)
B20: Masse | C20: =C7 -> 100.00 | D20: kg
B22: Wärmemenge
B23: ∆Q (erforderliche Wärmemenge) | C23: =C19*C20*C16 -> 11,709,600.00 | D23: Joule
B24: W | C24: =C23/(3.6*(10^6)) -> 3.25 | D24: kWh
B26: Energieverbrauch in kW
B27: ∆t | C27: =C9 -> 10.00 | D27: min
C28: =C27/60 -> 0.17 | D28: h
B29: Leistungsaufnahme | C29: =C24/C28 -> 19.52 | D29: kW
B34: Kosten für das Aufwärmen
B35: Strompreis | C35: 20.00 | D35: Cent / kWh
B36: Kosten gesamt | C36: =C29*C28*C35 -> 65.05 | D36: Cent

Sheet Abkühlungsgesetz
B2: Newtonsches Abkühlungsgesetz
B7: Umgebungstemperatur | D7: 20.00
B8: Temperatur zu t=0 (T0) | D8: 60.00
B9: Dauer in Minuten (X) | D9: 120.00
B10: Proportionalitätskonstante (k) | D10: =-LN(1/3)/90 -> 0.012206803207423
B12: Temperatur zu t=X (T(t)) | D12: =D7+(D8-D7)*EXP(-D10*D9) -> 29.24
B13: Abkühlung um °C | D13: =D8-D12 -> 30.76

Sheet Grafik Abkühlungsgesetz
B2: Newtonsches Abkühlungsgesetz
B7: Umgebungstemperatur | D7: 15.00
B8: Temperatur zu t=0 (T0) | D8: 40.00
B9: Proportionalitätskonstante (k) | D9: 0.007635689632154
B11: Temperaturentwicklung
B12: nach Zeiteinheiten | C12: Temperatur
B13: 1 | C13: =$D$7+($D$8-$D$7)*EXP(-$D$9*B13) -> 39.809834704727900
B14: =B13+1 -> 2 | C14: =$D$7+($D$8-$D$7)*EXP(-$D$9*B14) -> 39.621115923036900 | D14: =C13-C14 -> 0.188718781691037
B15: =B14+1 -> 3 | C15: =$D$7+($D$8-$D$7)*EXP(-$D$9*B15) -> 39.433832651859600 | D15: =C14-C15 -> 0.187283271177286
B16: 4 | C16: 39.247973971824800 | D16: 0.185858680034769
B17: 5 | C17: 39.063529046620800 | D17: 0.184444925204076
B18: 6 | C18: 38.880487122363200 | D18: 0.183041924257545
B19: 7 | C19: 38.698837526968600 | D19: 0.181649595394610
B20: 8 | C20: 38.518569669531800 | D20: 0.180267857436831
B21: 9 | C21: 38.339673039708400 | D21: 0.178896629823328
B22: 10 | C22: 38.162137207102400 | D22: 0.177535832605997
B23: 11 | C23: 37.985951820657600 | D23: 0.176185386444836
B24: 12 | C24: 37.811106608054200 | D24: 0.174845212603401
B25: 13 | C25: 37.637591375110100 | D25: 0.173515232944133
B26: 14 | C26: 37.465396005186200 | D26: 0.172195369923855
B27: 15 | C27: 37.294510458597000 | D27: 0.170885546589211
B28: 16 | C28: 37.124924772024800 | D28: 0.169585686572212
B29: 17 | C29: 36.956629057939000 | D29: 0.168295714085787
B30: 18 | C30: 36.789613504019700 | D30: 0.167015553919292
B31: 19 | C31: 36.623868372585500 | D31: 0.165745131434250
B32: 20 | C32: 36.459384000025600 | D32: 0.164484372559890
B33: 21 | C33: 36.296150796236700 | D33: 0.163233203788863
B34: =B33+1 -> 22 | C34: 36.134159244063700 | D34: 0.161991552172999
B35: 23 | C35: 35.973399898744700 | D35: 0.160759345318972
B36: 24 | C36: 35.813863387360600 | D36: 0.159536511384161
B37: 25 | C37: 35.655540408288200 | D37: 0.158322979072402
B38: 26 | C38: 35.498421730658300 | D38: 0.157118677629860
B39: 27 | C39: 35.342498193817400 | D39: 0.155923536840881
B40: 28 | C40: 35.187760706793500 | D40: 0.154737487023958
B41: 29 | C41: 35.034200247765900 | D41: 0.153560459027574
B42: 30 | C42: 34.881807863539700 | D42: 0.152392384226246
B43: 31 | C43: 34.730574669023200 | D43: 0.151233194516507
B44: 32 | C44: 34.580491846710300 | D44: 0.150082822312896
B45: 33 | C45: 34.431550646166200 | D45: 0.148941200544087
B46: 34 | C46: 34.283742383517300 | D46: 0.147808262648894
B47: 35 | C47: 34.137058440944800 | D47: 0.146683942572487
B48: 36 | C48: 33.991490266182300 | D48: 0.145568174762452
B49: 37 | C49: 33.847029372017300 | D49: 0.144460894165007
B50: 38 | C50: 33.703667335796100 | D50: 0.143362036221248
B51: 39 | C51: 33.561395798932800 | D51: 0.142271536863291
B52: 40 | C52: 33.420206466422200 | D52: 0.141189332510635
B53: 41 | C53: 33.280091106355800 | D53: 0.140115360066389
B54: 42 | C54: 33.141041549442100 | D54: 0.139049556913619
B55: 43 | C55: 33.003049688530400 | D55: 0.137991860911704
B56: 44 | C56: 32.866107478137800 | D56: 0.136942210392689
B57: 45 | C57: 32.730206933980000 | D57: 0.135900544157707
B58: 46 | C58: 32.595340132506600 | D58: 0.134866801473414
B59: 47 | C59: 32.461499210438200 | D59: 0.133840922068423
B60: 48 | C60: 32.328676364308400 | D60: 0.132822846129841
B61: 49 | C61: 32.196863850008700 | D61: 0.131812514299718
B62: 50 | C62: 32.066053982337000 | D62: 0.130809867671623
B63: 51 | C63: 31.936239134549800 | D63: 0.129814847787209
B64: 52 | C64: 31.807411737917000 | D64: 0.128827396632804
B65: 53 | C65: 31.679564281281000 | D65: 0.127847456636012
B66: 54 | C66: 31.552689310618600 | D66: 0.126874970662374
B67: 55 | C67: 31.426779428606600 | D67: 0.125909882012028
B68: =B67+1 -> 56 | C68: 31.301827294190200 | D68: 0.124952134416404
B69: 57 | C69: 31.177825622155200 | D69: 0.124001672034964
B70: 58 | C70: 31.054767182703300 | D70: 0.123058439451889
B71: 59 | C71: 30.932644801030400 | D71: 0.122122381672927
B72: 60 | C72: 30.811451356908300 | D72: 0.121193444122120
B73: 61 | C73: 30.691179784269600 | D73: 0.120271572638657
B74: 62 | C74: 30.571823070795900 | D74: 0.119356713473717
B75: 63 | C75: 30.453374257508600 | D75: 0.118448813287294
B76: 64 | C76: 30.335826438363500 | D76: 0.117547819145159
B77: 65 | C77: 30.219172759847800 | D77: 0.116653678515707
B78: 66 | C78: 30.103406420580800 | D78: 0.115766339266926
B79: 67 | C79: =$D$7+($D$8-$D$7)*EXP(-$D$9*B79) -> 29.988520670917500 | D79: =C78-C79 -> 0.114885749663355
B80: 68 | C80: 29.874508812554400 | D80: 0.114011858363064
B81: 69 | C81: 29.761364198139800 | D81: 0.113144614414658
B82: 70 | C82: 29.649080230885400 | D82: 0.112283967254317
B83: 71 | C83: 29.537650364182600 | D83: 0.111429866702821
B84: 72 | C84: 29.427068101219900 | D84: 0.110582262962680
B85: 73 | C85: 29.317326994604800 | D85: 0.109741106615150
B86: 74 | C86: 29.208420645987400 | D86: 0.108906348617435
B87: 75 | C87: 29.100342705687600 | D87: 0.108077940299761
B88: 76 | C88: 28.993086872325000 | D88: 0.107255833362579
B89: 77 | C89: 28.886646892451300 | D89: 0.106439979873738
B90: 78 | C90: 28.781016560185600 | D90: 0.105630332265683
B91: 79 | C91: 28.676189716852900 | D91: 0.104826843332681
B92: 80 | C92: 28.572160250624800 | D92: 0.104029466228084
B93: 81 | C93: 28.468922096163200 | D93: 0.103238154461600
B94: 82 | C94: 28.366469234266700 | D94: 0.102452861896538
B95: 83 | C95: 28.264795691519500 | D95: 0.101673542747179
B96: 84 | C96: 28.163895539943500 | D96: 0.100900151576059
B97: 85 | C97: 28.063762896652100 | D97: 0.100132643291364
B98: 86 | C98: 27.964391923507800 | D98: 0.099370973144247
B99: 87 | C99: 27.865776826781600 | D99: 0.098615096726270
B100: 88 | C100: 27.767911856814800 | D100: 0.097864969966782
B101: 89 | C101: 27.670791307684400 | D101: 0.097120549130356
B102: 90 | C102: 27.574409516870200 | D102: 0.096381790814267
B103: 91 | C103: 27.478760864924300 | D103: 0.095648651945904
B104: 92 | C104: 27.383839775144000 | D104: 0.094921089780318
B105: 93 | C105: 27.289640713246300 | D105: 0.094199061897694
B106: 94 | C106: 27.196158187045400 | D106: 0.093482526200887
B107: 95 | C107: 27.103386746132400 | D107: 0.092771440912973
B108: 96 | C108: 27.011320981557600 | D108: 0.092065764574816
B109: 97 | C109: 26.919955525515000 | D109: 0.091365456042624
B110: 98 | C110: 26.829285051029400 | D110: 0.090670474485577
B111: 99 | C111: 26.739304271645900 | D111: 0.089980779383460
B112: 100 | C112: 26.650007941121700 | D112: 0.089296330524253

Sheet Boilerdimensionierung
B2: Boilerdimensionierung
B4: spezifische Wärmekapazität | E4: =SUMIF(Tabelle1[Material],Mischungstemperatur!D$8,Tabelle1[kJ*kg^(−1)*K^(−1)]) -> 4.182
B5: Proportionalitätskonstante | E5: 0.0002423530574
B6: Umgebungstemperatur | E6: 20 | G6: °C
E8: Verbrauch | G8: Boiler | I8: Kaltwasser | K8: machbar | M8: Boiler
C9: Uhrzeit | D9: Dauer | E9: Liter | F9: °C | G9: 100 | H9: 65 | I9: Liter | J9: °C | N9: von | O9: bis
B10: Ausgangssituation | C10: 04:00:00 | G10: 96.00 | H10: 80.00 | I10: 0 | J10: 12.00 | M10: Temperatur | N10: 65 | O10: 80
B11: =CONCATENATE("Abkühlung bis Entnahme ",A12) -> Abkühlung bis Entnahme 1 | D11: =(C12-C10)*24*60 -> 480 | G11: =$G$10 -> 96.00 | H11: =$E$6+(H10-$E$6)*EXP(-$E$5*D11) -> 73.41 | M11: Volumen | N11: 80 | O11: 200
A12: 1 | B12: =CONCATENATE("Entnahme ",A12) -> Entnahme 1 | C12: 12:00:00 | E12: -15.00 | F12: 39.00 | G12: =E12*(J12-F12)/(H11-J12)*-1 -> -6.59 | H12: =H11 -> 73.41 | I12: =E12-G12 -> -8.41 | J12: 12.00 | K12: =IF(AND(AND(G12*-1<=$G$10,G12>E12),I12<=0),"ok","nok") -> ok
B13: =CONCATENATE("Temp nach Entnahme ",A12) -> Temp nach Entnahme 1 | G13: =$G$10 -> 96.00 | H13: =(($G$10+G12)*H12*$E$4+G12*J12*$E$4*-1)/(($G$10+G12)*$E$4+G12*-1*$E$4) -> 69.19 | I13: =G12 -> -6.59
B14: =CONCATENATE("Abkühlung bis Entnahme ",A15) -> Abkühlung bis Entnahme 2 | D14: =(C15-C12)*24*60 -> 240 | G14: =$G$10 -> 96.00 | H14: =$E$6+(H13-$E$6)*EXP(-$E$5*D14) -> 66.41
A15: 2 | B15: =CONCATENATE("Entnahme ",A15) -> Entnahme 2 | C15: 16:00:00 | E15: -5.00 | F15: 32.00 | G15: =E15*(J15-F15)/(H14-J15)*-1 -> -1.84 | H15: =H14 -> 66.41 | I15: =E15-G15 -> -3.16 | J15: 12.00 | K15: =IF(AND(AND(G15*-1<=$G$10,G15>E15),I15<=0),"ok","nok") -> ok
B16: =CONCATENATE("Temp nach Entnahme ",A15) -> Temp nach Entnahme 2 | G16: =$G$10 -> 96.00 | H16: =(($G$10+G15)*H15*$E$4+G15*J15*$E$4*-1)/(($G$10+G15)*$E$4+G15*-1*$E$4) -> 65.37 | I16: =G15 -> -1.84
B17: =CONCATENATE("Abkühlung bis Entnahme ",A18) -> Abkühlung bis Entnahme 3 | D17: =(C18-C15)*24*60 -> 240 | G17: =$G$10 -> 96.00 | H17: =$E$6+(H16-$E$6)*EXP(-$E$5*D17) -> 62.81
A18: =A15+1 -> 3 | B18: =CONCATENATE("Entnahme ",A18) -> Entnahme 3 | C18: 20:00:00 | E18: -2.00 | F18: 37.00 | G18: =E18*(J18-F18)/(H17-J18)*-1 -> -0.98 | H18: =H17 -> 62.81 | I18: =E18-G18 -> -1.02 | J18: 12.00 | K18: =IF(AND(AND(G18*-1<=$G$10,G18>E18),I18<=0),"ok","nok") -> ok
B19: =CONCATENATE("Temp nach Entnahme ",A18) -> Temp nach Entnahme 3 | G19: =$G$10 -> 96.00 | H19: =(($G$10+G18)*H18*$E$4+G18*J18*$E$4*-1)/(($G$10+G18)*$E$4+G18*-1*$E$4) -> 62.29 | I19: =G18 -> -0.98
B20: =CONCATENATE("Abkühlung bis Entnahme ",A21) -> Abkühlung bis Entnahme 4 | D20: =(C21-C18)*24*60 -> 75 | G20: =$G$10 -> 96.00 | H20: =$E$6+(H19-$E$6)*EXP(-$E$5*D20) -> 61.52
A21: =A18+1 -> 4 | B21: =CONCATENATE("Entnahme ",A21) -> Entnahme 4 | C21: 21:15:00 | E21: -10.00 | F21: 39.00 | G21: =E21*(J21-F21)/(H20-J21)*-1 -> -5.45 | H21: =H20 -> 61.52 | I21: =E21-G21 -> -4.55 | J21: 12.00 | K21: =IF(AND(AND(G21*-1<=$G$10,G21>E21),I21<=0),"ok","nok") -> ok
B22: =CONCATENATE("Temp nach Entnahme ",A21) -> Temp nach Entnahme 4 | G22: =$G$10 -> 96.00 | H22: =(($G$10+G21)*H21*$E$4+G21*J21*$E$4*-1)/(($G$10+G21)*$E$4+G21*-1*$E$4) -> 58.71 | I22: =G21 -> -5.45
B23: =CONCATENATE("Abkühlung bis Entnahme ",A24) -> Abkühlung bis Entnahme 5 | D23: =(C24-C21)*24*60 -> 45 | G23: =$G$10 -> 96.00 | H23: =$E$6+(H22-$E$6)*EXP(-$E$5*D23) -> 58.29
A24: =A21+1 -> 5 | B24: =CONCATENATE("Entnahme ",A24) -> Entnahme 5 | C24: 22:00:00 | E24: -10.00 | F24: 31.00 | G24: =E24*(J24-F24)/(H23-J24)*-1 -> -4.10 | H24: =H23 -> 58.29 | I24: =E24-G24 -> -5.90 | J24: 12.00 | K24: =IF(AND(AND(G24*-1<=$G$10,G24>E24),I24<=0),"ok","nok") -> ok
B25: =CONCATENATE("Temp nach Entnahme ",A24) -> Temp nach Entnahme 5 | G25: =$G$10 -> 96.00 | H25: =(($G$10+G24)*H24*$E$4+G24*J24*$E$4*-1)/(($G$10+G24)*$E$4+G24*-1*$E$4) -> 56.31 | I25: =G24 -> -4.10
B26: =CONCATENATE("Abkühlung bis Entnahme ",A27) -> Abkühlung bis Entnahme 6 | D26: =(C27-C24)*24*60 -> 0 | G26: =$G$10 -> 96.00 | H26: =$E$6+(H25-$E$6)*EXP(-$E$5*D26) -> 56.31
A27: =A24+1 -> 6 | B27: =CONCATENATE("Entnahme ",A27) -> Entnahme 6 | C27: 22:00:00 | E27: -40.00 | F27: 37.00 | G27: =E27*(J27-F27)/(H26-J27)*-1 -> -22.57 | H27: =H26 -> 56.31 | I27: =E27-G27 -> -17.43 | J27: 12.00 | K27: =IF(AND(AND(G27*-1<=$G$10,G27>E27),I27<=0),"ok","nok") -> ok
B28: =CONCATENATE("Temp nach Entnahme ",A27) -> Temp nach Entnahme 6 | G28: =$G$10 -> 96.00 | H28: =(($G$10+G27)*H27*$E$4+G27*J27*$E$4*-1)/(($G$10+G27)*$E$4+G27*-1*$E$4) -> 45.90 | I28: =G27 -> -22.57
B29: =CONCATENATE("Abkühlung bis Entnahme ",A30) -> Abkühlung bis Entnahme 7 | D29: =(C30-C27)*24*60 -> 30 | G29: =$G$10 -> 96.00 | H29: =$E$6+(H28-$E$6)*EXP(-$E$5*D29) -> 45.71
A30: =A27+1 -> 7 | B30: =CONCATENATE("Entnahme ",A30) -> Entnahme 7 | C30: 22:30:00 | E30: -40.00 | F30: 37.00 | G30: =E30*(J30-F30)/(H29-J30)*-1 -> -29.67 | H30: =H29 -> 45.71 | I30: =E30-G30 -> -10.33 | J30: 12.00 | K30: =IF(AND(AND(G30*-1<=$G$10,G30>E30),I30<=0),"ok","nok") -> ok
B31: =CONCATENATE("Temp nach Entnahme ",A30) -> Temp nach Entnahme 7 | G31: =$G$10 -> 96.00 | H31: =(($G$10+G30)*H30*$E$4+G30*J30*$E$4*-1)/(($G$10+G30)*$E$4+G30*-1*$E$4) -> 35.29 | I31: =G30 -> -29.67
B32: =CONCATENATE("Abkühlung bis Entnahme ",A33) -> Abkühlung bis Entnahme 8 | D32: =(C33-C30)*24*60 -> 30 | G32: =$G$10 -> 96.00 | H32: =$E$6+(H31-$E$6)*EXP(-$E$5*D32) -> 35.18
A33: =A30+1 -> 8 | B33: =CONCATENATE("Entnahme ",A33) -> Entnahme 8 | C33: 23:00:00 | E33: -40.00 | F33: 37.00 | G33: =E33*(J33-F33)/(H32-J33)*-1 -> -43.14 | H33: =H32 -> 35.18 | I33: =E33-G33 -> 3.14 | J33: 12.00 | K33: =IF(AND(AND(G33*-1<=$G$10,G33>E33),I33<=0),"ok","nok") -> nok
B34: =CONCATENATE("Temp nach Entnahme ",A33) -> Temp nach Entnahme 8 | G34: =$G$10 -> 96.00 | H34: =(($G$10+G33)*H33*$E$4+G33*J33*$E$4*-1)/(($G$10+G33)*$E$4+G33*-1*$E$4) -> 24.76 | I34: =G33 -> -43.14
B35: Warmwasserverbrauch in Liter | E35: =SUM(E12,E15,E18,E21,E24,E27,E30,E33)*-1 -> 162.00 | F35: Kaltwasserverbrauch in Liter | I35: =SUM(I10:I34)*-1 -> 162.00 | K35: =COUNTIF(K10:K34,"nok") -> 1
G36: davon Mischwasser | I36: =SUM(I12,I15,I18,I21,I24,I27,I30,I33)*-1 -> 47.66
